[Event "Titled Tuesday Blitz May 10 Late 2022"]
[White "Moral Garcia, Serafin"]
[Black "Antonova, Nadezhda"]
[WhiteFideId "2201925"]
[BlackFideId "14700182"]
[WhiteElo "2228"]
[BlackElo "1743"]
[Result "1-0"]
[Round "06"]
[TimeControl "180+1"]
[Date "2022.05.11"]
[WhiteClock "0:01:40"]
[BlackClock "0:00:32"]

1. e4 {[%clk 0:03:00]}  d6 {[%clk 0:02:55]} 2. d4 {[%clk 0:03:00]}  Nf6 {[%clk 0:02:55]} 3. Nc3 {[%clk 0:03:00]}  e5 {[%clk 0:02:55]} 4. Nf3 {[%clk 0:03:00]}  Nbd7 {[%clk 0:02:54]} 5. Bc4 {[%clk 0:02:59]}  Be7 {[%clk 0:02:54]} 6. O-O {[%clk 0:02:56]}  O-O {[%clk 0:02:54]} 7. Re1 {[%clk 0:02:56]}  c6 {[%clk 0:02:54]} 8. a4 {[%clk 0:02:56]}  b6 {[%clk 0:02:53]} 9. b3 {[%clk 0:02:52]}  Bb7 {[%clk 0:02:53]} 10. Bd3 {[%clk 0:02:52]}  a6 {[%clk 0:02:53]} 11. Ne2 {[%clk 0:02:52]}  b5 {[%clk 0:02:53]} 12. Ng3 {[%clk 0:02:51]}  Re8 {[%clk 0:02:53]} 13. Bb2 {[%clk 0:02:52]}  Bf8 {[%clk 0:02:51]} 14. Qd2 {[%clk 0:02:49]}  g6 {[%clk 0:02:51]} 15. c4 {[%clk 0:02:45]}  bxc4 {[%clk 0:02:37]} 16. Bxc4 {[%clk 0:02:44]}  exd4 {[%clk 0:02:33]} 17. Nxd4 {[%clk 0:02:42]}  d5 {[%clk 0:02:33]} 18. exd5 {[%clk 0:02:42]}  cxd5 {[%clk 0:02:33]} 19. Bf1 {[%clk 0:02:33]}  Bg7 {[%clk 0:02:29]} 20. Rxe8+ {[%clk 0:02:29]}  Qxe8 {[%clk 0:02:28]} 21. Rd1 {[%clk 0:02:29]}  Nc5 {[%clk 0:02:25]} 22. f3 {[%clk 0:02:27]}  Ne6 {[%clk 0:02:20]} 23. Nge2 {[%clk 0:02:24]}  Rc8 {[%clk 0:02:04]} 24. Bc3 {[%clk 0:02:14]}  h5 {[%clk 0:01:39]} 25. Qb2 {[%clk 0:02:09]}  Qe7 {[%clk 0:01:26]} 26. Nxe6 {[%clk 0:01:53]}  fxe6 {[%clk 0:01:24]} 27. Be5 {[%clk 0:01:51]}  h4 {[%clk 0:01:22]} 28. Nf4 {[%clk 0:01:50]}  Kh7 {[%clk 0:01:00]} 29. Bd3 {[%clk 0:01:50]}  Kg8 {[%clk 0:00:41]} 30. Nxg6 {[%clk 0:01:46]}  Qc5+ {[%clk 0:00:33]} 31. Bd4 {[%clk 0:01:44]}  Qc7 {[%clk 0:00:32]} 32. Bxf6 {[%clk 0:01:40]} 1-0


[Site "https://www.chess.com"]

[Event "Titled Tuesday Blitz May 10 Late 2022"]
[White "Mortazavi, Ali"]
[Black "Stoleriu, George"]
[WhiteFideId "401323"]
[BlackFideId "1227505"]
[WhiteElo "2339"]
[BlackElo "2194"]
[Result "0-1"]
[Round "06"]
[TimeControl "180+1"]
[Date "2022.05.11"]
[WhiteClock "0:00:05"]
[BlackClock "0:00:14"]

1. Nf3 {[%clk 0:02:57]}  Nf6 {[%clk 0:02:59]} 2. g3 {[%clk 0:02:57]}  e6 {[%clk 0:03:00]} 3. Bg2 {[%clk 0:02:58]}  d5 {[%clk 0:02:55]} 4. O-O {[%clk 0:02:59]}  b5 {[%clk 0:02:56]} 5. d3 {[%clk 0:02:57]}  Be7 {[%clk 0:02:54]} 6. Nbd2 {[%clk 0:02:53]}  O-O {[%clk 0:02:53]} 7. a4 {[%clk 0:02:52]}  b4 {[%clk 0:02:52]} 8. e4 {[%clk 0:02:48]}  c6 {[%clk 0:02:50]} 9. e5 {[%clk 0:02:45]}  Nfd7 {[%clk 0:02:49]} 10. Re1 {[%clk 0:02:44]}  a5 {[%clk 0:02:48]} 11. Nf1 {[%clk 0:02:43]}  Na6 {[%clk 0:02:40]} 12. h4 {[%clk 0:02:43]}  Nc7 {[%clk 0:02:39]} 13. N1h2 {[%clk 0:02:41]}  Ba6 {[%clk 0:02:40]} 14. Ng4 {[%clk 0:02:40]}  c5 {[%clk 0:02:41]} 15. h5 {[%clk 0:02:32]}  Re8 {[%clk 0:02:41]} 16. h6 {[%clk 0:02:29]}  g6 {[%clk 0:02:40]} 17. Bf4 {[%clk 0:02:30]}  Nb6 {[%clk 0:02:30]} 18. Qc1 {[%clk 0:02:10]}  d4 {[%clk 0:02:16]} 19. Bg5 {[%clk 0:02:10]}  Ncd5 {[%clk 0:02:11]} 20. b3 {[%clk 0:02:05]}  Bb7 {[%clk 0:02:05]} 21. Bxe7 {[%clk 0:02:03]}  Qxe7 {[%clk 0:02:06]} 22. Ng5 {[%clk 0:02:03]}  Nd7 {[%clk 0:02:05]} 23. Ne4 {[%clk 0:01:58]}  Ra6 {[%clk 0:02:02]} 24. Qd2 {[%clk 0:01:40]}  Rf8 {[%clk 0:01:58]} 25. Re2 {[%clk 0:01:39]}  f5 {[%clk 0:01:50]} 26. exf6 {[%clk 0:01:39]}  N7xf6 {[%clk 0:01:50]} 27. Ngxf6+ {[%clk 0:01:22]}  Nxf6 {[%clk 0:01:51]} 28. Nxf6+ {[%clk 0:01:09]}  Rxf6 {[%clk 0:01:52]} 29. Bxb7 {[%clk 0:01:08]}  Qxb7 {[%clk 0:01:53]} 30. Rae1 {[%clk 0:00:58]}  Kf7 {[%clk 0:01:49]} 31. Qg5 {[%clk 0:00:57]}  Qe7 {[%clk 0:01:37]} 32. g4 {[%clk 0:00:56]}  Rc6 {[%clk 0:01:36]} 33. Re5 {[%clk 0:00:55]}  Rf3 {[%clk 0:01:33]} 34. Kg2 {[%clk 0:00:39]}  Qf6 {[%clk 0:01:12]} 35. R1e2 {[%clk 0:00:30]}  Rf4 {[%clk 0:01:06]} 36. Qxf6+ {[%clk 0:00:21]}  Kxf6 {[%clk 0:00:54]} 37. Kg3 {[%clk 0:00:18]}  g5 {[%clk 0:00:54]} 38. Re1 {[%clk 0:00:15]}  Kg6 {[%clk 0:00:41]} 39. Rxe6+ {[%clk 0:00:15]}  Rf6 {[%clk 0:00:42]} 40. Rxc6 {[%clk 0:00:15]}  Rxc6 {[%clk 0:00:43]} 41. Kf3 {[%clk 0:00:11]}  Kxh6 {[%clk 0:00:41]} 42. Rh1+ {[%clk 0:00:11]}  Kg6 {[%clk 0:00:41]} 43. Ke4 {[%clk 0:00:12]}  Re6+ {[%clk 0:00:38]} 44. Kd5 {[%clk 0:00:12]}  Re2 {[%clk 0:00:39]} 45. Kxc5 {[%clk 0:00:12]}  Rxc2+ {[%clk 0:00:37]} 46. Kb5 {[%clk 0:00:11]}  Rc3 {[%clk 0:00:36]} 47. Kxa5 {[%clk 0:00:11]}  Rxb3 {[%clk 0:00:36]} 48. Kb5 {[%clk 0:00:11]}  Rxd3 {[%clk 0:00:33]} 49. a5 {[%clk 0:00:11]}  Rd2 {[%clk 0:00:28]} 50. Ra1 {[%clk 0:00:07]}  b3 {[%clk 0:00:22]} 51. a6 {[%clk 0:00:07]}  Ra2 {[%clk 0:00:23]} 52. Rb1 {[%clk 0:00:07]}  b2 {[%clk 0:00:23]} 53. Kb6 {[%clk 0:00:07]}  d3 {[%clk 0:00:23]} 54. a7 {[%clk 0:00:06]}  d2 {[%clk 0:00:21]} 55. Kb7 {[%clk 0:00:06]}  Ra1 {[%clk 0:00:19]} 56. a8=Q {[%clk 0:00:04]}  Rxa8 {[%clk 0:00:16]} 57. Kxa8 {[%clk 0:00:04]}  Kf6 {[%clk 0:00:16]} 58. Kb7 {[%clk 0:00:05]}  Ke5 {[%clk 0:00:17]} 59. Kb6 {[%clk 0:00:05]}  Kf4 {[%clk 0:00:17]} 60. Kb5 {[%clk 0:00:06]}  Kf3 {[%clk 0:00:16]} 61. Kc4 {[%clk 0:00:05]}  Ke2 {[%clk 0:00:17]} 62. Rxb2 {[%clk 0:00:05]}  Ke1 {[%clk 0:00:16]} 63. Rxd2 {[%clk 0:00:05]}  Kxd2 {[%clk 0:00:17]} 64. Kd4 {[%clk 0:00:05]}  Ke2 {[%clk 0:00:18]} 65. Ke5 {[%clk 0:00:06]}  Kxf2 {[%clk 0:00:14]} 66. Kf5 {[%clk 0:00:07]}  h6 {[%clk 0:00:14]} 67. Kg6 {[%clk 0:00:07]}  Kg3 {[%clk 0:00:14]} 68. Kf5 {[%clk 0:00:05]}  Kh4 {[%clk 0:00:14]} 0-1


[Site "https://www.chess.com"]

[Event "Titled Tuesday Blitz May 10 Late 2022"]
[White "Nagy, Gabor"]
[Black "Roberson, Peter T"]
[WhiteFideId "737119"]
[BlackFideId "412384"]
[WhiteElo "2569"]
[BlackElo "2346"]
[Result "1-0"]
[Round "06"]
[TimeControl "180+1"]
[Date "2022.05.10"]
[WhiteClock "0:01:18"]
[BlackClock "0:00:03"]

1. c4 {[%clk 0:03:00]}  b6 {[%clk 0:02:59]} 2. e4 {[%clk 0:02:59]}  e6 {[%clk 0:02:59]} 3. Nc3 {[%clk 0:02:59]}  Bb4 {[%clk 0:02:59]} 4. Nge2 {[%clk 0:02:59]}  Ne7 {[%clk 0:02:58]} 5. g3 {[%clk 0:02:59]}  Ng6 {[%clk 0:02:58]} 6. Bg2 {[%clk 0:02:59]}  Nc6 {[%clk 0:02:58]} 7. O-O {[%clk 0:02:56]}  O-O {[%clk 0:02:58]} 8. d4 {[%clk 0:02:56]}  Bb7 {[%clk 0:02:56]} 9. d5 {[%clk 0:02:53]}  Na5 {[%clk 0:02:56]} 10. b3 {[%clk 0:02:51]}  exd5 {[%clk 0:02:48]} 11. Nxd5 {[%clk 0:02:52]}  Bd6 {[%clk 0:02:39]} 12. f4 {[%clk 0:02:47]}  Re8 {[%clk 0:02:35]} 13. Bb2 {[%clk 0:02:45]}  a6 {[%clk 0:02:24]} 14. Kh1 {[%clk 0:02:43]}  b5 {[%clk 0:02:22]} 15. e5 {[%clk 0:02:40]}  Bf8 {[%clk 0:02:22]} 16. cxb5 {[%clk 0:02:34]}  axb5 {[%clk 0:02:20]} 17. Rc1 {[%clk 0:02:30]}  Bxd5 {[%clk 0:02:14]} 18. Qxd5 {[%clk 0:02:27]}  c6 {[%clk 0:02:14]} 19. Qd3 {[%clk 0:02:27]}  Nb7 {[%clk 0:02:10]} 20. Qb1 {[%clk 0:02:22]}  Ba3 {[%clk 0:02:08]} 21. Rfd1 {[%clk 0:02:17]}  Qe7 {[%clk 0:02:06]} 22. Nd4 {[%clk 0:02:16]}  Nc5 {[%clk 0:01:58]} 23. Nf5 {[%clk 0:02:13]}  Qf8 {[%clk 0:01:58]} 24. Nd6 {[%clk 0:02:11]}  Bxb2 {[%clk 0:01:07]} 25. Qxb2 {[%clk 0:02:11]}  Na6 {[%clk 0:01:08]} 26. Nxe8 {[%clk 0:02:01]}  Qxe8 {[%clk 0:01:09]} 27. Re1 {[%clk 0:02:00]}  Nb4 {[%clk 0:01:06]} 28. Qd2 {[%clk 0:01:56]}  Qe7 {[%clk 0:00:58]} 29. Rcd1 {[%clk 0:01:53]}  Nf8 {[%clk 0:00:56]} 30. a4 {[%clk 0:01:43]}  bxa4 {[%clk 0:00:57]} 31. bxa4 {[%clk 0:01:44]}  Rxa4 {[%clk 0:00:55]} 32. f5 {[%clk 0:01:44]}  Ra2 {[%clk 0:00:52]} 33. Qf4 {[%clk 0:01:40]}  Qc5 {[%clk 0:00:45]} 34. e6 {[%clk 0:01:35]}  Qc2 {[%clk 0:00:27]} 35. Rd2 {[%clk 0:01:21]}  Qc3 {[%clk 0:00:02]} 36. e7 {[%clk 0:01:18]}  Rxd2 {[%clk 0:00:02]} 37. e8=Q {[%clk 0:01:18]}  Nd3 {[%clk 0:00:03]} 38. Qxf8+ {[%clk 0:01:18]}  Kxf8 {[%clk 0:00:03]} 39. Qb8# {[%clk 0:01:18]} 1-0


[Site "https://www.chess.com"]

[Event "Titled Tuesday Blitz May 10 Late 2022"]
[White "Nazaretyan, Tigran"]
[Black "Bazeev, German"]
[WhiteFideId "24162345"]
[BlackFideId "24119350"]
[WhiteElo "2225"]
[BlackElo "2493"]
[Result "0-1"]
[Round "06"]
[TimeControl "180+1"]
[Date "2022.05.10"]
[WhiteClock "0:00:07"]
[BlackClock "0:00:08"]

1. d4 {[%clk 0:02:50]}  Nf6 {[%clk 0:02:58]} 2. c4 {[%clk 0:02:49]}  e6 {[%clk 0:02:58]} 3. Nf3 {[%clk 0:02:49]}  Bb4+ {[%clk 0:02:57]} 4. Bd2 {[%clk 0:02:49]}  c5 {[%clk 0:02:57]} 5. Bxb4 {[%clk 0:02:48]}  cxb4 {[%clk 0:02:58]} 6. g3 {[%clk 0:02:40]}  b6 {[%clk 0:02:56]} 7. Bg2 {[%clk 0:02:40]}  Bb7 {[%clk 0:02:57]} 8. O-O {[%clk 0:02:40]}  a5 {[%clk 0:02:57]} 9. a3 {[%clk 0:02:38]}  Na6 {[%clk 0:02:57]} 10. Qb3 {[%clk 0:02:36]}  O-O {[%clk 0:02:56]} 11. Nbd2 {[%clk 0:02:34]}  d6 {[%clk 0:02:56]} 12. Rfe1 {[%clk 0:02:34]}  Qc7 {[%clk 0:02:56]} 13. e4 {[%clk 0:02:33]}  e5 {[%clk 0:02:56]} 14. axb4 {[%clk 0:02:09]}  Nxb4 {[%clk 0:02:54]} 15. Rac1 {[%clk 0:01:50]}  Nd7 {[%clk 0:02:50]} 16. Bh3 {[%clk 0:01:47]}  Rfe8 {[%clk 0:02:48]} 17. Red1 {[%clk 0:01:39]}  Rad8 {[%clk 0:02:21]} 18. Qe3 {[%clk 0:01:30]}  Nf6 {[%clk 0:02:06]} 19. d5 {[%clk 0:01:28]}  Nd7 {[%clk 0:02:00]} 20. Nb1 {[%clk 0:01:28]}  Nc5 {[%clk 0:01:58]} 21. Nc3 {[%clk 0:01:27]}  Ba6 {[%clk 0:01:59]} 22. Nd2 {[%clk 0:01:13]}  Qe7 {[%clk 0:01:55]} 23. Bg4 {[%clk 0:01:10]}  g6 {[%clk 0:01:53]} 24. h4 {[%clk 0:01:10]}  Qf8 {[%clk 0:01:49]} 25. Nb5 {[%clk 0:01:05]}  Bxb5 {[%clk 0:01:48]} 26. cxb5 {[%clk 0:01:05]}  h5 {[%clk 0:01:47]} 27. Bh3 {[%clk 0:01:05]}  Re7 {[%clk 0:01:37]} 28. Nc4 {[%clk 0:01:05]}  Rb7 {[%clk 0:01:37]} 29. Rf1 {[%clk 0:00:58]}  Re8 {[%clk 0:01:35]} 30. Rfd1 {[%clk 0:00:39]}  Rbb8 {[%clk 0:01:33]} 31. Qf3 {[%clk 0:00:38]}  Kg7 {[%clk 0:01:31]} 32. Bg2 {[%clk 0:00:38]}  Red8 {[%clk 0:01:28]} 33. Bh3 {[%clk 0:00:38]}  Qe7 {[%clk 0:01:25]} 34. Qe3 {[%clk 0:00:38]}  Qf6 {[%clk 0:01:24]} 35. Kg2 {[%clk 0:00:36]}  Re8 {[%clk 0:01:21]} 36. Qf3 {[%clk 0:00:35]}  Qxf3+ {[%clk 0:01:20]} 37. Kxf3 {[%clk 0:00:35]}  Kf6 {[%clk 0:01:20]} 38. Nxd6 {[%clk 0:00:35]}  Red8 {[%clk 0:01:14]} 39. Nc4 {[%clk 0:00:34]}  Nb3 {[%clk 0:01:14]} 40. Rc3 {[%clk 0:00:32]}  Nd4+ {[%clk 0:01:14]} 41. Kg2 {[%clk 0:00:33]}  Nxb5 {[%clk 0:01:14]} 42. Rf3+ {[%clk 0:00:32]}  Kg7 {[%clk 0:01:11]} 43. Nxe5 {[%clk 0:00:33]}  Nd6 {[%clk 0:01:12]} 44. Re1 {[%clk 0:00:28]}  Re8 {[%clk 0:01:11]} 45. Nc6 {[%clk 0:00:28]}  Nxc6 {[%clk 0:01:05]} 46. dxc6 {[%clk 0:00:29]}  Re7 {[%clk 0:01:04]} 47. e5 {[%clk 0:00:28]}  Nb5 {[%clk 0:01:04]} 48. Rd1 {[%clk 0:00:24]}  Rbe8 {[%clk 0:00:58]} 49. Rd7 {[%clk 0:00:22]}  Nc7 {[%clk 0:00:55]} 50. e6 {[%clk 0:00:18]}  fxe6 {[%clk 0:00:54]} 51. Rfd3 {[%clk 0:00:13]}  b5 {[%clk 0:00:51]} 52. R3d6 {[%clk 0:00:12]}  Kf7 {[%clk 0:00:49]} 53. f4 {[%clk 0:00:09]}  Rxd7 {[%clk 0:00:49]} 54. cxd7 {[%clk 0:00:08]}  Rd8 {[%clk 0:00:47]} 55. Kf3 {[%clk 0:00:06]}  Ke7 {[%clk 0:00:47]} 56. Rb6 {[%clk 0:00:06]}  Rxd7 {[%clk 0:00:44]} 57. Ke4 {[%clk 0:00:06]}  Rd2 {[%clk 0:00:34]} 58. Rb7 {[%clk 0:00:06]}  Kd6 {[%clk 0:00:34]} 59. Ke3 {[%clk 0:00:05]}  Rxb2 {[%clk 0:00:34]} 60. Rb6+ {[%clk 0:00:06]}  Kc5 {[%clk 0:00:29]} 61. Rb7 {[%clk 0:00:05]}  Nd5+ {[%clk 0:00:29]} 62. Kf3 {[%clk 0:00:04]}  Rb3+ {[%clk 0:00:30]} 63. Kf2 {[%clk 0:00:04]}  Rb2+ {[%clk 0:00:25]} 64. Kf3 {[%clk 0:00:04]}  Kd6 {[%clk 0:00:25]} 65. Ra7 {[%clk 0:00:03]}  a4 {[%clk 0:00:25]} 66. Ra6+ {[%clk 0:00:04]}  Kc5 {[%clk 0:00:26]} 67. Bxe6 {[%clk 0:00:03]}  Rb3+ {[%clk 0:00:25]} 68. Kf2 {[%clk 0:00:03]}  Rb2+ {[%clk 0:00:25]} 69. Kf3 {[%clk 0:00:02]}  Nb4 {[%clk 0:00:26]} 70. Ra8 {[%clk 0:00:02]}  Nc6 {[%clk 0:00:20]} 71. Bf7 {[%clk 0:00:02]}  Nd4+ {[%clk 0:00:18]} 72. Ke4 {[%clk 0:00:02]}  Nf5 {[%clk 0:00:16]} 73. Bxg6 {[%clk 0:00:01]}  Nxg3+ {[%clk 0:00:16]} 74. Kf3 {[%clk 0:00:02]}  Rb3+ {[%clk 0:00:15]} 75. Kg2 {[%clk 0:00:02]}  Ne2 {[%clk 0:00:14]} 76. f5 {[%clk 0:00:02]}  Nf4+ {[%clk 0:00:15]} 77. Kf2 {[%clk 0:00:02]}  Nd5 {[%clk 0:00:13]} 78. Bf7 {[%clk 0:00:03]}  Rb2+ {[%clk 0:00:07]} 79. Kf3 {[%clk 0:00:02]}  Nb6 {[%clk 0:00:08]} 80. Rb8 {[%clk 0:00:02]}  Nd7 {[%clk 0:00:07]} 81. Be6 {[%clk 0:00:01]}  Nxb8 {[%clk 0:00:07]} 82. f6 {[%clk 0:00:02]}  Kd6 {[%clk 0:00:07]} 83. f7 {[%clk 0:00:02]}  Ke7 {[%clk 0:00:08]} 84. Bd5 {[%clk 0:00:03]}  Nd7 {[%clk 0:00:07]} 85. Kf4 {[%clk 0:00:03]}  Nf8 {[%clk 0:00:08]} 86. Kg5 {[%clk 0:00:04]}  a3 {[%clk 0:00:08]} 87. Kxh5 {[%clk 0:00:04]}  a2 {[%clk 0:00:09]} 88. Bxa2 {[%clk 0:00:04]}  Rxa2 {[%clk 0:00:10]} 89. Kh6 {[%clk 0:00:04]}  b4 {[%clk 0:00:09]} 90. h5 {[%clk 0:00:05]}  b3 {[%clk 0:00:09]} 91. Kg7 {[%clk 0:00:06]}  b2 {[%clk 0:00:09]} 92. h6 {[%clk 0:00:06]}  b1=Q {[%clk 0:00:09]} 93. h7 {[%clk 0:00:07]}  Qxh7# {[%clk 0:00:08]} 0-1


[Site "https://www.chess.com"]

[Event "Titled Tuesday Blitz May 10 Late 2022"]
[White "Paravyan, David"]
[Black "Dreev, Aleksey"]
[WhiteFideId "4194985"]
[BlackFideId "4100107"]
[WhiteElo "2569"]
[BlackElo "2625"]
[Result "1/2-1/2"]
[Round "06"]
[TimeControl "180+1"]
[Date "2022.05.10"]
[WhiteClock "0:00:09"]
[BlackClock "0:00:04"]

1. e4 {[%clk 0:03:00]}  c6 {[%clk 0:02:59]} 2. d4 {[%clk 0:02:59]}  d5 {[%clk 0:03:00]} 3. e5 {[%clk 0:03:00]}  c5 {[%clk 0:02:57]} 4. Nf3 {[%clk 0:03:00]}  cxd4 {[%clk 0:02:52]} 5. Nxd4 {[%clk 0:03:01]}  Nc6 {[%clk 0:02:51]} 6. Nxc6 {[%clk 0:03:00]}  bxc6 {[%clk 0:02:52]} 7. Bd3 {[%clk 0:03:01]}  e6 {[%clk 0:02:44]} 8. O-O {[%clk 0:03:01]}  Ne7 {[%clk 0:02:44]} 9. Nd2 {[%clk 0:03:00]}  Ng6 {[%clk 0:02:43]} 10. Nf3 {[%clk 0:03:00]}  Bc5 {[%clk 0:02:32]} 11. Re1 {[%clk 0:02:51]}  a5 {[%clk 0:02:32]} 12. Be3 {[%clk 0:02:37]}  Bxe3 {[%clk 0:02:28]} 13. Rxe3 {[%clk 0:02:38]}  Ba6 {[%clk 0:02:22]} 14. Bxg6 {[%clk 0:02:36]}  hxg6 {[%clk 0:02:21]} 15. Qd4 {[%clk 0:02:34]}  Rb8 {[%clk 0:02:17]} 16. Rb3 {[%clk 0:02:22]}  Be2 {[%clk 0:01:51]} 17. Qc5 {[%clk 0:02:17]}  Rxb3 {[%clk 0:01:32]} 18. Qxc6+ {[%clk 0:02:07]}  Qd7 {[%clk 0:01:32]} 19. Qxd7+ {[%clk 0:02:06]}  Kxd7 {[%clk 0:01:32]} 20. axb3 {[%clk 0:02:07]}  Bxf3 {[%clk 0:01:31]} 21. gxf3 {[%clk 0:02:06]}  Rc8 {[%clk 0:01:26]} 22. c3 {[%clk 0:02:05]}  Rb8 {[%clk 0:01:20]} 23. Ra3 {[%clk 0:02:02]}  g5 {[%clk 0:01:20]} 24. Kg2 {[%clk 0:01:41]}  Kc6 {[%clk 0:01:04]} 25. Rxa5 {[%clk 0:01:40]}  Rxb3 {[%clk 0:01:04]} 26. Ra7 {[%clk 0:01:40]}  Rxb2 {[%clk 0:01:04]} 27. Rxf7 {[%clk 0:01:41]}  Re2 {[%clk 0:00:52]} 28. Rxg7 {[%clk 0:01:25]}  Rxe5 {[%clk 0:00:52]} 29. Kg3 {[%clk 0:01:14]}  Kc5 {[%clk 0:00:52]} 30. Rc7+ {[%clk 0:01:14]}  Kd6 {[%clk 0:00:52]} 31. Rg7 {[%clk 0:01:06]}  Kc5 {[%clk 0:00:52]} 32. Rc7+ {[%clk 0:01:06]}  Kd6 {[%clk 0:00:52]} 33. Rc8 {[%clk 0:01:06]}  Re1 {[%clk 0:00:51]} 34. f4 {[%clk 0:00:54]}  Rg1+ {[%clk 0:00:49]} 35. Kf3 {[%clk 0:00:54]}  g4+ {[%clk 0:00:47]} 36. Ke3 {[%clk 0:00:52]}  Re1+ {[%clk 0:00:47]} 37. Kd3 {[%clk 0:00:51]}  Re4 {[%clk 0:00:45]} 38. Rf8 {[%clk 0:00:51]}  Ke7 {[%clk 0:00:45]} 39. Rg8 {[%clk 0:00:23]}  Rxf4 {[%clk 0:00:45]} 40. Ke2 {[%clk 0:00:23]}  Kf7 {[%clk 0:00:41]} 41. Rg5 {[%clk 0:00:19]}  Kf6 {[%clk 0:00:40]} 42. Rg8 {[%clk 0:00:19]}  Kf5 {[%clk 0:00:36]} 43. Rf8+ {[%clk 0:00:19]}  Ke4 {[%clk 0:00:36]} 44. Rg8 {[%clk 0:00:19]}  e5 {[%clk 0:00:26]} 45. Rg7 {[%clk 0:00:09]}  Kf5 {[%clk 0:00:22]} 46. Rf7+ {[%clk 0:00:09]}  Kg5 {[%clk 0:00:18]} 47. Rd7 {[%clk 0:00:09]}  d4 {[%clk 0:00:18]} 48. cxd4 {[%clk 0:00:10]}  exd4 {[%clk 0:00:17]} 49. Rd8 {[%clk 0:00:10]}  Kf5 {[%clk 0:00:10]} 50. Rf8+ {[%clk 0:00:05]}  Ke5 {[%clk 0:00:10]} 51. Re8+ {[%clk 0:00:06]}  Kd5 {[%clk 0:00:08]} 52. Rd8+ {[%clk 0:00:06]}  Ke6 {[%clk 0:00:08]} 53. Re8+ {[%clk 0:00:06]}  Kf7 {[%clk 0:00:07]} 54. Rd8 {[%clk 0:00:06]}  Kg6 {[%clk 0:00:06]} 55. Rg8+ {[%clk 0:00:05]}  Kh5 {[%clk 0:00:05]} 56. Rh8+ {[%clk 0:00:05]}  Kg5 {[%clk 0:00:05]} 57. Rg8+ {[%clk 0:00:06]}  Kh6 {[%clk 0:00:05]} 58. Rh8+ {[%clk 0:00:06]}  Kg6 {[%clk 0:00:05]} 59. Rg8+ {[%clk 0:00:06]}  Kf7 {[%clk 0:00:05]} 60. Rd8 {[%clk 0:00:06]}  Ke7 {[%clk 0:00:05]} 61. Rd5 {[%clk 0:00:06]}  Ke6 {[%clk 0:00:04]} 62. Rd8 {[%clk 0:00:06]}  Re4+ {[%clk 0:00:04]} 63. Kd3 {[%clk 0:00:06]}  Rf4 {[%clk 0:00:04]} 64. Rxd4 {[%clk 0:00:06]}  Rxf2 {[%clk 0:00:04]} 65. Rxg4 {[%clk 0:00:07]}  Rxh2 {[%clk 0:00:05]} 66. Re4+ {[%clk 0:00:07]}  Kf5 {[%clk 0:00:04]} 67. Re2 {[%clk 0:00:08]}  Rxe2 {[%clk 0:00:04]} 68. Kxe2 {[%clk 0:00:09]} 1/2-1/2


[Site "https://www.chess.com"]

[Event "Titled Tuesday Blitz May 10 Late 2022"]
[White "Perez Molina, Robinson"]
[Black "Sargsyan, Anna M."]
[WhiteFideId "3403882"]
[BlackFideId "13308130"]
[WhiteElo "2252"]
[BlackElo "2271"]
[Result "1-0"]
[Round "06"]
[TimeControl "180+1"]
[Date "2022.05.11"]
[WhiteClock "0:00:41"]
[BlackClock "0:00:01"]

1. Nf3 {[%clk 0:03:00]}  d5 {[%clk 0:02:59]} 2. d4 {[%clk 0:03:00]}  Nf6 {[%clk 0:02:59]} 3. c4 {[%clk 0:03:01]}  c6 {[%clk 0:02:59]} 4. Nc3 {[%clk 0:02:59]}  dxc4 {[%clk 0:02:59]} 5. e3 {[%clk 0:02:59]}  Bf5 {[%clk 0:02:54]} 6. Bxc4 {[%clk 0:02:58]}  e6 {[%clk 0:02:55]} 7. O-O {[%clk 0:02:54]}  Nbd7 {[%clk 0:02:56]} 8. h3 {[%clk 0:02:54]}  h6 {[%clk 0:02:52]} 9. Qe2 {[%clk 0:02:55]}  Be7 {[%clk 0:02:52]} 10. e4 {[%clk 0:02:55]}  Bg6 {[%clk 0:02:51]} 11. a3 {[%clk 0:02:54]}  O-O {[%clk 0:02:51]} 12. Rd1 {[%clk 0:02:54]}  Qc7 {[%clk 0:02:50]} 13. g3 {[%clk 0:02:43]}  c5 {[%clk 0:02:41]} 14. Bf4 {[%clk 0:02:41]}  Qb6 {[%clk 0:02:35]} 15. Na4 {[%clk 0:02:22]}  Qa5 {[%clk 0:02:35]} 16. Nxc5 {[%clk 0:02:16]}  Nxc5 {[%clk 0:02:18]} 17. b4 {[%clk 0:02:15]}  Qa4 {[%clk 0:01:51]} 18. Bb5 {[%clk 0:02:15]}  Qb3 {[%clk 0:01:50]} 19. dxc5 {[%clk 0:02:15]}  Nxe4 {[%clk 0:01:44]} 20. Rdb1 {[%clk 0:02:11]}  Qxb1+ {[%clk 0:01:16]} 21. Rxb1 {[%clk 0:02:08]}  Nc3 {[%clk 0:01:16]} 22. Qe1 {[%clk 0:01:57]}  Nxb1 {[%clk 0:01:16]} 23. Ne5 {[%clk 0:01:52]}  Bf5 {[%clk 0:00:39]} 24. g4 {[%clk 0:01:50]}  Bh7 {[%clk 0:00:37]} 25. c6 {[%clk 0:01:35]}  bxc6 {[%clk 0:00:35]} 26. Nxc6 {[%clk 0:01:35]}  Bf6 {[%clk 0:00:32]} 27. a4 {[%clk 0:01:14]}  Nc3 {[%clk 0:00:31]} 28. Bc4 {[%clk 0:01:10]}  Rac8 {[%clk 0:00:30]} 29. b5 {[%clk 0:01:08]}  Nxa4 {[%clk 0:00:30]} 30. Qa5 {[%clk 0:01:03]}  Nb2 {[%clk 0:00:26]} 31. Bb3 {[%clk 0:01:00]}  Nd3 {[%clk 0:00:25]} 32. Bd6 {[%clk 0:01:00]}  Rfe8 {[%clk 0:00:21]} 33. Qa6 {[%clk 0:00:58]}  Bh4 {[%clk 0:00:14]} 34. f3 {[%clk 0:00:55]}  Bg5 {[%clk 0:00:12]} 35. Qb7 {[%clk 0:00:51]}  Be3+ {[%clk 0:00:11]} 36. Kf1 {[%clk 0:00:51]}  Nf4 {[%clk 0:00:06]} 37. Ne7+ {[%clk 0:00:47]}  Kh8 {[%clk 0:00:07]} 38. Nxc8 {[%clk 0:00:46]}  Bd3+ {[%clk 0:00:08]} 39. Ke1 {[%clk 0:00:45]}  Rd8 {[%clk 0:00:02]} 40. Qc7 {[%clk 0:00:43]}  Ng2+ {[%clk 0:00:01]} 41. Kd1 {[%clk 0:00:43]}  Re8 {[%clk 0:00:01]} 42. Qd7 {[%clk 0:00:41]} 1-0


[Site "https://www.chess.com"]